Cogmind - Beta 15 *** ADVENTURER MODE // 2025.08.09 @ 17:03:19 Player: Frisko Result: Destroyed by RU-46G(R) with Subdweller Machine Gun Performance ------------- Evolutions (0) 0 Regions Visited (2) 400 Robots Destroyed (10) 50 Value Destroyed (343) 343 Prototype IDs (3) 60 Alien Tech Used (0) 0 Bonus (0) 0 TOTAL SCORE: 853 Bonus ------- None Cogmind --------- Core Integrity 0/250 Matter 294/300 Energy 114/125 System Corruption 2% Temperature Cool (0) Movement Core (200) Ox3 Location -10/Subcaves Parts ------- > --- POWER (1) -------- Light Ion Engine > --- PROPULSION (2) --- (None) > --- UTILITY (2) ------ Machine Analyzer Subdweller Optics > --- WEAPON (2) ------- Subdweller Laser Heavy Assault Rifle > --- INVENTORY (5) ---- Subdweller Power Source Flight Unit Heavy Assault Rifle Heavy Assault Rifle Subdweller Machine Gun Peak State ------------ > --- POWER ------------ Light Ion Engine > --- PROPULSION ------- (None) > --- UTILITY ---------- Machine Analyzer Subdweller Optics > --- WEAPON ----------- Subdweller Laser Heavy Assault Rifle > --- INVENTORY -------- Subdweller Power Source Flight Unit Heavy Assault Rifle Heavy Assault Rifle Subdweller Machine Gun [Rating: 10] Favorites ----------- Power Light Ion Engine Engine Light Ion Engine Propulsion Flight Unit Wheel Compact Wheel Flight Unit Flight Unit Utility Subdweller Optics Device Subdweller Optics Storage Small Storage Unit Processor Machine Analyzer Weapon Heavy Assault Rifle Energy Gun Subdweller Laser Ballistic Gun Heavy Assault Rifle Build | -11 -10 -10 ------- Run | Yrd Mat Sub Slots Evolved . | . . . Power . | . . . Propulsion . | . . . Utility . | . . . Weapon . | . . . Parts Attached 15 | 6 4 5 Power 2 | 1 . 1 Engine 2 | 1 . 1 Core . | . . . Reactor . | . . . Propulsion 4 | 2 2 . Treads . | . . . Leg . | . . . Wheel 2 | 2 . . Hover . | . . . Flight 2 | . 2 . Utility 3 | 1 . 2 Device 1 | . . 1 Storage 1 | 1 . . Processor 1 | . . 1 Hackware . | . . . Protection . | . . . Artifact . | . . . Weapon 6 | 2 2 2 Energy Gun 3 | 1 . 2 Energy Cannon . | . . . Ballistic Gun 3 | 1 2 . Ballistic Cannon . | . . . Launcher . | . . . Special Weapon . | . . . Impact Weapon . | . . . Slashing Weapon . | . . . Piercing Weapon . | . . . Special Melee Weapon . | . . . Unidentified Prototypes . | . . . Parts Lost 3 | . . 3 Power 1 | . . 1 Propulsion 2 | . . 2 Utility . | . . . Weapon . | . . . Highest Loss Streak 2 | . . 2 To Critical Strikes . | . . . Average Backups 4 | 3 6 4 Power . | . 1 . Propulsion 1 | 1 3 1 Utility . | . . . Weapon 2 | 1 1 2 Tool/Special . | . . . Unused Backups 11 | . 4 7 Power 1 | . . 1 Propulsion 6 | . 3 3 Utility . | . . . Weapon 4 | . 1 3 Tool/Special . | . . . Average Slot Usage (%) 79 | . 84 78 Engine 13 | . 14 13 Wheel 6 | . 20 . Flight 17 | . 7 22 Device 7 | . . 11 Storage 4 | . 14 . Processor 1 | . . 2 Energy Gun 9 | . 4 11 Ballistic Gun 18 | . 23 16 Peak Build Rating 10 | 6 9 10 Average Rating 8 | 4 7 8 On Entrance 5 | . 6 9 Naked Turns . | . . . Heaviest Build 14 | 11 14 12 Greatest Support 26 | 26 26 8 Greatest Overweight (x) 3 | 1 1 3 Average Overweight (x) . | . . 1 Largest Inventory Capacity 8 | 8 8 8 Average Capacity 6 | 7 8 5 Most Carried 8 | 8 8 7 Average Carried 4 | 3 6 4 Final Capacity 8 | 8 8 5 Final Carried 8 | 5 8 5 Class Distribution -------------------- 100% | Mutant Dominant Class ---------------- Mutant | -10/Materials Mutant | -10/Subcaves Resources | -11 -10 -10 ----------- Run | Yrd Mat Sub Matter Collected 517 | 236 94 187 Remotely . | . . . Salvage Created 377 | 27 118 232 Parts 31 | 1 11 19 Haulers Intercepted . | . . . Recyclers Shooed . | . . . Parts Field Recycled . | . . . Retrieved Matter . | . . . Parts Self-Destructed 9 | . . 9 Prevented . | . . . Kills | -11 -10 -10 ------- Run | Yrd Mat Sub Combat Hostiles Destroyed 9 | . 3 6 Guns 9 | . 3 6 Classes Destroyed 3 | 1 1 1 Tunneler 1 | 1 . . Grunt 4 | . 3 1 Subdweller 5 | . . 5 Best Kill Streak 3 | 1 3 2 Combat Bots Only 3 | . 3 2 Max Kills in Single Turn 1 | 1 1 1 Gunslinging . | . . . Exploded . | . . . Melee . | . . . Uniques/NPCs Destroyed . | . . . Combat | -11 -10 -10 -------- Run | Yrd Mat Sub Hostile Shots Fired 75 | . 10 65 Missed 31 | . 3 28 Hits 44 | . 7 37 Projectile 44 | . 7 37 Critical Strikes 1 | . . 1 Damage Taken 647 | . 99 548 Core 258 | . 23 235 Absorbed by Shields . | . . . Ignored by Resistances 183 | . 27 156 Core Remaining (%) 100 | 100 . . Volleys Fired 37 | 2 7 28 Largest 2 | 2 2 2 Hottest 83 | 60 46 83 Shots Fired 72 | 4 14 54 Gun 72 | 4 14 54 Cannon . | . . . Launcher . | . . . Special . | . . . Kinetic 51 | 2 14 35 Thermal 21 | 2 . 19 Explosive . | . . . Electromagnetic . | . . . Robot Hit Streak 31 | 2 8 31 Robot Miss Streak 2 | 1 1 2 Penetration Max . | . . . Secondary Targets . | . . . Shots Hit Robots 60 | 2 11 47 Core Hits 17 | 1 3 13 Critical Kills . | . . . Critical Parts Destroyed . | . . . Critical Strikes . | . . . Melee Attacks . | . . . Impact . | . . . Slashing . | . . . Piercing . | . . . Sneak Attacks . | . . . Combat Hostiles . | . . . Follow-up Attacks . | . . . Damage Inflicted 792 | 23 169 600 Guns 779 | 23 160 596 Cannons . | . . . Explosions . | . . . Melee . | . . . Ramming 13 | . 9 4 Kinetic 521 | 12 160 349 Thermal 258 | 11 . 247 Explosive . | . . . Electromagnetic . | . . . Impact . | . . . Slashing . | . . . Piercing . | . . . Highest Corruption 2 | . 2 2 Average Corruption 2 | . 2 2 Corruption Purged . | . . . Corruption Blocked . | . . . Effects 15 | . 4 11 Message Errors 3 | . . 3 Matter Fused 5 | . 2 3 Energy Discharges 2 | . 1 1 Data Loss (minor) 4 | . 1 3 Data Loss (major) 1 | . . 1 Overload Shots . | . . . Overflow Damage . | . . . Projectiles . | . . . Explosions . | . . . Melee . | . . . Knockbacks . | . . . Impact . | . . . Kinetic . | . . . Secondary . | . . . Self-Inflicted Damage 6 | . 4 2 Shots . | . . . Rammed 4 | . 3 1 Targets Rammed 4 | . 3 1 Kicked . | . . . Crushed . | . . . Highest Temperature 1 | . 1 1 Average Temperature 1 | . 1 1 Received Heat Transfer 210 | . 42 168 Siege Activations . | . . . Martial Activations . | . . . Shielding Activations . | . . . Robots Disrupted . | . . . Combat Hostiles . | . . . Robots Corrupted . | . . . Combat Hostiles . | . . . Parts Fried . | . . . Impact Corruptions . | . . . Robots Melted . | . . . Combat Hostiles . | . . . Parts Melted . | . . . Heat Transferred 325 | 25 . 300 Parts Sabotaged . | . . . Parts Stolen . | . . . Parts Stripped . | . . . Power Chain Reactions . | . . . Alert | -11 -10 -10 ------- Run | Yrd Mat Sub Maximum Alert Level . | . . . Low Security (%) 100 | 100 100 . Level 1 . | . . . Level 2 . | . . . Level 3 . | . . . Level 4 . | . . . Level 5 . | . . . High Security . | . . . Max Security . | . . . Peak Influence 60 | 5 60 . Initial . | . . . Average 11 | 1 13 . Influence Increases 113 | 5 88 20 Destroy 0b10 Robot/C 80 | . 60 20 Destroy 0b10 Robot/NC 5 | 5 . . Destroy Leader 10 | . 10 . Successful Hack 18 | . 18 . Influence Decreases 113 | 5 88 20 Time Decay 113 | 5 88 20 Squads Dispatched 1 | . 1 . Investigation 1 | . 1 . Extermination . | . . . Reinforcement . | . . . Assault . | . . . Garrison . | . . . Intercept . | . . . Searches Triggered . | . . . Construction Impeded . | . . . Haulers Reinforced . | . . . Active Scanning Responses . | . . . Cargo Convoy Interrupts . | . . . Stealth | -11 -10 -10 --------- Run | Yrd Mat Sub Distress Signals . | . . . Communications Jammed . | . . . Distress Signals . | . . . Times Spotted 13 | . 3 10 Peak Tracking Total 2 | . 2 2 Tactical Retreats . | . . . Traps | -11 -10 -10 ------- Run | Yrd Mat Sub Traps Triggered 1 | . 1 . Indirectly . | . . . Trap Hack Attempts . | . . . Triggered . | . . . Disarmed . | . . . Reprogrammed . | . . . Reused . | . . . Traps Extracted . | . . . Installed . | . . . Triggered . | . . . Machines | -11 -10 -10 ---------- Run | Yrd Mat Sub Machines Disabled . | . . . Max in Single Turn . | . . . Machines Repaired . | . . . Machines Dismantled . | . . . Machines Sabotaged . | . . . Overloaded Fab Kills . | . . . Hacking | -11 -10 -10 --------- Run | Yrd Mat Sub Machines Accessed 3 | . 3 . Terminals 3 | . 3 . Fabricators . | . . . Repair Stations . | . . . Recycling Units . | . . . Scanalyzers . | . . . Garrison Access . | . . . Total Hacks 12 | . 12 . Successful 8 | . 8 . Failed 4 | . 4 . Catastrophic 1 | . 1 . Database Lockouts . | . . . Manual . | . . . Terminals 12 | . 12 . Fabricators . | . . . Repair Stations . | . . . Recycling Units . | . . . Scanalyzers . | . . . Garrison Access . | . . . Terminal Hacks 8 | . 8 . Record 1 | . 1 . Prototype ID Bank 2 | . 2 . Alert Level 1 | . 1 . Locate Traps 1 | . 1 . Patrol Status 1 | . 1 . Registered Components 1 | . 1 . Zone Layout 1 | . 1 . Fabricator Hacks . | . . . Repair Station Hacks . | . . . Recycling Unit Hacks . | . . . Scanalyzer . | . . . Garrison Access Hacks . | . . . Unauthorized Hacks . | . . . Terminals . | . . . Fabricators . | . . . Repair Stations . | . . . Recycling Units . | . . . Scanalyzers . | . . . Garrison Access . | . . . Data Cores Recovered . | . . . Used . | . . . Hacking Detections 2 | . 2 . Full Trace Events 1 | . 1 . Feedback Events . | . . . Feedback Blocked . | . . . Robot Schematics Acquired . | . . . Robots Built . | . . . Authchips . | . . . Time . | . . . Total Robot Build Rating . | . . . Part Schematics Acquired . | . . . Parts Built . | . . . Authchips . | . . . Time . | . . . Total Part Build Rating . | . . . Parts Repaired . | . . . Time . | . . . Parts Recycled . | . . . Recycled Matter . | . . . Retrieved Matter . | . . . Retrieved Components . | . . . Parts Scanalyzed . | . . . Part Schematics Acquired . | . . . Parts Damaged . | . . . Bothacking | -11 -10 -10 ------------ Run | Yrd Mat Sub Used RIF Installer . | . . . Robots Hacked . | . . . Non-combat . | . . . Combat . | . . . Robot Hacks Applied . | . . . Relay Couplers Released . | . . . Fabnet Peak Effective % . | . . . Robots Rewired . | . . . Allies Hacked . | . . . Hacks Repelled . | . . . Allies | -11 -10 -10 -------- Run | Yrd Mat Sub Total Allies . | . . . Largest Group . | . . . Highest-Rated Group . | . . . Highest-Rated Ally . | . . . Total Orders . | . . . Ally Attacks . | . . . Total Damage . | . . . Kills . | . . . Allies Corrupted . | . . . Allies Melted . | . . . Intel | -11 -10 -10 ------- Run | Yrd Mat Sub Active Infowar (turns) 612 | . . 612 Optics 612 | . . 612 Machine Analysis 106 | . . 106 Robot Analysis Total . | . . . Derelict Logs Recovered 1 | . . 1 Drone Launches . | . . . Drone Recoveries . | . . . Exploration | -11 -10 -10 ------------- Run | Yrd Mat Sub Turns Passed 1149 | 61 328 760 Spaces Moved 825 | 43 288 494 Core 68 | 2 . 66 Treads . | . . . Legs . | . . . Wheels 261 | 41 220 . Hover . | . . . Flight 496 | . 68 428 Fastest Speed 37 | 50 90 37 Average Speed 114 | 90 96 127 Slowest Speed 200 | 100 117 200 Overloaded Moves . | . . . Propulsion Burnouts . | . . . Robots Hopped . | . . . Potential Cave-ins . | . . . Cave-ins Triggered . | . . . Exploration Rate (%) 19 | 4 22 33 Regions Visited 2 Branch Regions 1 Pre-discovered Areas 1 | . . 1 Known Exits Taken . | . . . Unknown Exits Taken 2 | 1 1 . Scrap Searched . | . . . Spaces Dug . | . . . Terrain Destroyed . | . . . Melee . | . . . Projectile . | . . . AOE . | . . . Terrain Rammed . | . . . Walls Destroyed . | . . . Machines Disabled . | . . . Actions | -11 -10 -10 --------- Run | Yrd Mat Sub Total 959 | 61 326 572 Wait 42 | . 10 32 Move 823 | 42 287 494 Hop . | . . . Pick Up 25 | 11 9 5 Fast Attach 1 | . . 1 Attach 10 | 6 2 2 Detach . | . . . Swap 4 | . 2 2 Drop 13 | . 6 7 Fire 37 | 2 7 28 Melee . | . . . Ram 4 | . 3 1 Kick . | . . . Crush . | . . . Escape Stasis . | . . . Rewire . | . . . Trap . | . . . Miscellaneous . | . . . Route ------- -11/Scrapyard -10/Materials (discovered 2 exits: [Mat] / [*Sub]) -10/Subcaves (discovered 1 exit: [*Mat]) History --------- Turn | Location | Event 28 | -11/Scrapyard | Discovered new exit (range 15) 62 | -11/Scrapyard | Entered Materials 221 | -10/Materials | Discovered new exit (range 12) 329 | -10/Materials | Build established: Mutant 365 | -10/Materials | Discovered new exit (range 11) 390 | -10/Materials | Entered Subcaves 391 | -10/Subcaves | Approached by a straggling Scientist 527 | -10/Subcaves | Core integrity fell below 50% 689 | -10/Subcaves | A swath of the cavern ceiling suddenly collapsed 874 | -10/Subcaves | Learned location of Zion (-6) 874 | -10/Subcaves | Met a Zionite searching for "candidates" 977 | -10/Subcaves | Ambushed by Subdwellers from Twisted Machinery 1004 | -10/Subcaves | Discovered new exit (range 18) 1014 | -10/Subcaves | Core integrity fell below 20% 1036 | -10/Subcaves | Learned Materials terminal intel 1150 | -10/Subcaves | Destroyed by RU-46G(R) with Subdweller Machine Gun Last Messages --------------- 00952_ Heat Sink fries itself beyond repair. 00953_ Acquired 7 matter. 00954_ Dropped Broken Sub. Laser. 00955_ Subatomizers dissect the Disposable Heat Sink. 00959_ Acquired 3 matter. 00967_ Acquired Sub. Machine Gun. 00969_ Subatomizers dissect the Disposable Heat Sink. 00977_ KJ-Y6H(R) emerges from the Twisted Machinery. 00980_ Subatomizers dissect the Disposable Heat Sink. 00982_ Flight Unit destroyed. 00986_ System corrupted: Matter fused (-8). 01000_ 2T-HU6(R) destroyed. 01004_ EXIT=FOUND 01006_ Flight Unit destroyed. 01018_ Subatomizers dissect the Sub. Optics. 01036_ Acquired derelict log, extracted data. Data stored: Materials terminal intel. 01040_ Acquired 24 matter. 01044_ Acquired Machine Analyzer. 01045_ Acquired 10 matter. Map ----- +----------------------------------------------------+ | ?????????????????????????????????????????????????? | | ?????????????????????????????????????????????????? | | ?????????????????????????????????????????????????? | | ?????????????????????????????????????????????????? | | ?????????????????????????????????????????????????? | | ?????????????????????????????????????????????????? | | ?????????????????????????????????????????????????? | | ?????????????????????????????????????????????????? | | ?????????????????????????????????????????????????? | | ?????????????????????????????????????????????????? | | ?????????????????????????????????????????????????? | | ???????????????????? ????????????????????????????? | | ????????????????????""""?????????????????????????? | | ?????????????????????#""##???????????????????????? | | ???????????????????###" " #?####?????????????????? | | ???????????????????# """ ## #???????????????" ? | | ???????????????????# " #????????????? " ? | | ???????????????????# #??#####??????? ? | | ???????????????????? ?? ##?# ##?????? | | ??????? ??????????? ???? ##?# #####??? | | ???????? ????????# ????# #?### #??? | | ??????????? ?????# ???## #???# ##??? | | ??????????????# #### R??## ##?#### ##?? | | ???????????????# ### ### # #??# | | ???????????????# ## ####%##??? | | ????????????????# @ R ### #??? | | ????????????????########## ## ## #% ###?# | | ?????????????????????????############ % ### | | ???????????????????????????????????# # "## | | ???????????????????????????????????## ##" | | ????????????????????????????????????# ##" | | ??????????????????????????????# ## ###""" ## | | ????????????????????????????????# # " ## | | ????????????????????????????????# # | | ????????????????????????????????# | | ????????????????????????????# # # | | ???????????????????????????# ### ^ | | ???????????????????????????? ## % | | ???????????????????????????## ## ## ^ | | ????????????????????????????####### ## #?# # | | ??????????????????????????????????####?## ??## ## | | ????????????????????????????????????????# ???###? | | ???????????????????????????????????????? #??????? | | ??????????????????????????????????????? ???????? | | ?????????????????????????????????????? #?????### | | ????????????????????????????????????? ??????# | | ???????????????????????????????????? #?##???# | | ????????????????????????????????????# ##?# ##?## | | ????????????????????????????????????##### ### | | ?????????????????????????????????????## ## | +----------------------------------------------------+ Best States ------------- Heat Dissipation 25 Energy Generation 10 Energy Capacity 125 Matter Stores 300 Matter Capacity 300 Sight Range 21 Terrain Scan Density 10 Resistance: KI 20 Resistance: TH 20 Resistance: EX 20 Resistance: EM 20 Resistance: I 20 Resistance: S 20 Resistance: P 20 Evasion (%) 50 Offensive Hacking 10 Item Schematics ----------------- None Robot Schematics ------------------ None Fabricated ------------ Nothing Repaired ---------- Nothing Alien Tech Used ----------------- None Achievements -------------- None Challenges ------------ None Game ------ Seed DeuteriumRelayCycler Manual? 0 Play Time 00:23:56 Cumulative 11.6 hours Start 2025.08.09 @ 16:40:27 End 2025.08.09 @ 17:03:19 Sessions 1 Manual Loads 0 Difficulty Adventurer Special Mode None Game No. 19 Rogue 17 Adventurer 2 Explorer 0 Win Type - Total 0 Types 0/0/0/0/0/0/0/0/0/0 Lore% 5 Gallery% 13 Achievement% 16 Wizard Run 0 Options --------- Layout 0 ASCII 0 Keyboard 0 Movement Numpad Keybinds 0 Fullscreen 1 Font 18/SmallcapsGlow Map View 38x25 Zoom Use 86% Tactical HUD 1 Map Filters NONE Filters NONE Steam 1 RUN: b5c89c50-2905-47ed-844f-6150bfab779d